bitfinex/quotes_SOLUSD_20241226
["timestamp","ask_amount","ask_price","bid_price","bid_amount"]
[1735173781223,6.5913,197.15,197.08,17.02417751]
[1735173781224,8.1068,197.15,197.08,17.02417751]
[1735173781437,1.5155,197.15,197.1,17.02417751]
[1735173783392,1.5155,197.15,197.08,17.02417751]
[1735173783596,17.02417751,197.14,197.07,17.02417751]
[1735173783797,17.78437751,197.14,197.07,17.02417751]
[1735173785022,17.78437751,197.14,197.05,17.02417751]
[1735173785023,17.02417751,197.12,197.05,17.02417751]
[1735173785227,0.7602,197.11,197.04,17.02417751]
[1735173785522,17.02417751,197.08,197.0,17.02417751]
[1735173785730,18.55657751,197.06,196.98,17.02417751]
[1735173785900,0.7602,197.05,196.98,17.02417751]
[1735173792240,1.5324,197.06,197.02,17.02417751]
[1735173793031,23.64157751,197.09,197.02,17.02417751]
[1735173793339,18.55657751,197.11,197.02,17.02417751]
[1735173793525,0.7602,197.1,197.02,17.02417751]
[1735173793725,0.7602,197.1,197.04,17.02417751]
[1735173796136,0.7602,197.1,196.98,42.6916]
[1735173796137,0.7602,197.1,197.02,17.02417751]
[1735173796851,0.7602,197.1,197.04,17.02417751]
[1735173797018,0.7602,197.1,197.06,17.02417751]
[1735173797208,17.02417751,197.13,196.99,0.761188]
[1735173797209,0.7602,197.13,197.07,17.02417751]
[1735173797542,1.5324,197.16,197.12,17.02417751]
[1735173797721,7.3776,197.19,197.13,17.02417751]
[1735173798345,1.5324,197.21,197.15,17.02417751]
[1735173798541,2.2926,197.21,197.15,17.02417751]
[1735173799657,2.2926,197.21,197.14,17.02417751]
[1735173799830,19.31677751,197.21,197.14,17.02417751]
[1735173800935,2.2926,197.21,197.14,17.02417751]
[1735173801259,2.2926,197.21,197.15,17.02417751]
[1735173802373,17.02417751,197.22,197.17,17.02417751]
[1735173802374,0.7602,197.22,197.17,17.02417751]
[1735173802680,0.7602,197.23,197.18,17.02417751]
[1735173803035,0.7602,197.23,197.16,17.02417751]
[1735173803234,17.02417751,197.22,197.14,17.02417751]
[1735173803536,17.78437751,197.21,197.14,17.02417751]
[1735173803973,0.7602,197.21,197.15,17.02417751]
[1735173804558,0.7602,197.21,197.16,17.02417751]
[1735173804744,0.7602,197.25,197.2,17.02417751]
[1735173804945,1.5956,197.26,197.23,17.02417751]
[1735173805148,0.7602,197.28,197.23,17.02417751]
[1735173805351,0.88569,197.3,197.23,17.02417751]
[1735173805551,17.90986751,197.3,197.23,17.02417751]
[1735173805752,17.90986751,197.3,197.22,17.02417751]
[1735173805942,17.02417751,197.27,197.19,17.02417751]
[1735173806167,0.7602,197.26,197.19,17.02417751]
[1735173806470,0.7602,197.26,197.2,17.02417751]
[1735173807165,0.7602,197.27,197.2,17.02417751]
[1735173809855,17.14966751,197.26,197.18,17.02417751]
[1735173810176,17.02417751,197.24,197.16,17.02417751]
[1735173810346,0.7602,197.23,197.16,17.02417751]
[1735173810977,18.74526751,197.22,197.14,17.02417751]
[1735173811267,0.7602,197.21,197.14,17.02417751]
[1735173811951,17.02417751,197.18,197.1,17.02417751]
[1735173812136,0.7602,197.17,197.1,17.02417751]
[1735173813577,20.0,197.15,197.1,17.02417751]
[1735173813869,0.7602,197.14,197.1,17.02417751]
[1735173814973,20.0,197.15,197.1,17.02417751]
[1735173815479,17.78437751,197.2,197.12,17.02417751]
[1735173815773,20.0,197.19,197.14,17.02417751]
[1735173817180,0.7602,197.21,197.14,17.02417751]
[1735173817385,19.37997751,197.22,197.14,17.02417751]
[1735173817550,2.3558,197.22,197.16,17.02417751]
[1735173818281,0.12549,197.21,197.14,17.02417751]
[1735173818579,0.7602,197.2,197.14,17.02417751]
[1735173818946,21.5956,197.22,197.16,17.02417751]
[1735173819145,20.0,197.21,197.16,17.02417751]
[1735173819346,1.5956,197.22,197.16,17.02417751]
[1735173819675,17.02417751,197.24,197.16,17.02417751]
[1735173820060,20.0,197.23,197.18,17.02417751]
[1735173820262,17.78437751,197.26,197.18,17.02417751]
[1735173822972,17.02417751,197.3,197.22,17.02417751]
[1735173823167,0.7602,197.31,197.24,17.02417751]
[1735173824073,0.7602,197.31,197.25,17.02417751]
[1735173824300,1.6106,197.32,197.26,17.02417751]
[1735173824789,0.7602,197.31,197.25,17.02417751]
[1735173825074,2.3708,197.32,197.25,17.02417751]
[1735173827050,20.0,197.3,197.24,17.02417751]
[1735173827251,29.69257751,197.35,197.26,17.02417751]
[1735173827580,0.7602,197.34,197.29,17.02417751]
[1735173828093,2.3708,197.37,197.3,17.02417751]
[1735173828308,20.0,197.35,197.3,17.02417751]
[1735173830094,0.7602,197.34,197.28,17.02417751]
[1735173830586,0.7602,197.34,197.29,17.02417751]
[1735173830792,0.7602,197.35,197.29,17.02417751]
[1735173831092,20.0,197.36,197.29,17.02417751]
[1735173831282,20.0,197.35,197.31,17.02417751]
[1735173831790,20.0,197.36,197.31,17.02417751]
[1735173831991,0.7602,197.35,197.3,17.02417751]
[1735173833014,20.7602,197.36,197.3,17.02417751]
[1735173833171,20.0,197.36,197.3,17.02417751]
[1735173833965,0.7602,197.35,197.3,17.02417751]
[1735173834270,20.7602,197.36,197.3,17.02417751]
[1735173834872,20.0,197.36,197.3,17.02417751]
[1735173836209,0.7602,197.35,197.28,17.02417751]
[1735173838508,20.7602,197.36,197.3,17.02417751]
[1735173838910,20.7602,197.36,197.29,17.02417751]
[1735173839202,0.7602,197.36,197.3,17.02417751]
[1735173839439,0.12549,197.37,197.3,17.02417751]
[1735173839707,0.88569,197.37,197.3,17.02417751]
[1735173840585,17.02417751,197.33,197.22,7.10115546]
[1735173840787,0.7602,197.32,197.25,17.02417751]
[1735173840990,17.02417751,197.35,197.28,17.02417751]
[1735173841195,0.7602,197.34,197.28,17.02417751]
[1735173841404,0.7602,197.34,197.27,17.02417751]
[1735173841996,0.7602,197.34,197.19,1.5144]
[1735173841997,17.02417751,197.29,197.21,17.02417751]
[1735173842191,0.7602,197.28,197.21,17.02417751]
[1735173843593,29.82256751,197.27,197.19,17.02417751]
[1735173843800,0.7602,197.26,197.19,17.02417751]
[1735173848393,0.12549,197.25,197.19,17.02417751]
[1735173848603,17.02417751,197.23,197.15,17.02417751]
[1735173848807,0.7602,197.22,197.15,17.02417751]
[1735173850599,19.43517751,197.22,197.1,20.76057346]
[1735173850915,17.14966751,197.21,197.13,17.02417751]
[1735173851207,0.7602,197.2,197.13,17.02417751]
[1735173854217,0.7602,197.2,197.12,17.02417751]
[1735173854218,17.78437751,197.2,197.12,17.02417751]
[1735173854595,0.7602,197.2,197.16,17.02417751]
[1735173854800,17.02417751,197.26,197.19,17.02417751]
[1735173855002,2.411,197.27,197.2,17.02417751]
[1735173856215,1.6508,197.27,197.22,17.02417751]
[1735173856396,20.0,197.26,197.22,17.02417751]
[1735173856600,1.6508,197.27,197.23,17.02417751]
[1735173857198,0.7602,197.29,197.24,17.02417751]
[1735173857430,0.7602,197.31,197.25,17.02417751]
[1735173857729,1.5521,197.32,197.28,17.02417751]
[1735173857901,17.02417751,197.36,197.29,17.02417751]
[1735173858103,0.7602,197.36,197.3,17.02417751]
[1735173859117,0.12549,197.35,197.28,17.02417751]
[1735173859319,0.12549,197.35,197.21,30.0]
[1735173859320,17.78437751,197.34,197.26,17.02417751]
[1735173859536,17.78437751,197.34,197.27,17.02417751]
[1735173860238,0.7602,197.34,197.27,17.02417751]
[1735173861226,19.33647751,197.37,197.3,17.02417751]
[1735173861432,2.3123,197.37,197.3,17.02417751]
[1735173861732,19.33647751,197.37,197.29,17.02417751]
[1735173862111,37.02417751,197.36,197.29,17.02417751]
[1735173862302,0.7602,197.35,197.29,17.02417751]
[1735173863036,0.7602,197.35,197.18,30.0]
[1735173863037,17.02417751,197.31,197.18,30.0]
[1735173863220,0.12549,197.29,197.23,17.02417751]
[1735173863525,17.14966751,197.27,197.19,17.02417751]
[1735173863732,0.7602,197.26,197.19,17.02417751]
[1735173863904,17.78437751,197.27,197.19,17.02417751]
[1735173864101,17.02417751,197.27,197.19,17.02417751]
[1735173864304,17.02417751,197.27,197.21,17.02417751]
[1735173865009,0.7602,197.26,197.21,17.02417751]
[1735173867512,17.78437751,197.27,197.21,17.02417751]
[1735173869111,2.3496,197.28,197.21,17.02417751]
[1735173869453,1.5894,197.28,197.23,17.02417751]
[1735173869639,1.5894,197.28,197.19,0.76043451]
[1735173869640,0.7602,197.32,197.25,17.02417751]
[1735173869938,18.61357751,197.33,197.27,17.02417751]
[1735173870140,1.5894,197.33,197.28,17.02417751]
[1735173870317,1.5894,197.33,197.23,47.02417751]
[1735173870318,0.7602,197.35,197.29,17.02417751]
[1735173870843,1.5894,197.38,197.31,17.02417751]
[1735173871745,17.02417751,197.35,197.28,17.02417751]
[1735173872042,17.78437751,197.34,197.27,17.02417751]
[1735173872228,17.78437751,197.34,197.26,17.02417751]
[1735173872437,0.7602,197.37,197.31,17.02417751]
[1735173872615,1.5894,197.38,197.31,17.02417751]
[1735173872809,17.02417751,197.37,197.3,17.02417751]
[1735173873014,17.78437751,197.36,197.29,17.02417751]
[1735173873237,19.37377751,197.38,197.3,17.02417751]
[1735173873842,2.3496,197.38,197.32,17.02417751]
[1735173874043,0.12549,197.37,197.31,17.02417751]
[1735173874362,17.78437751,197.36,197.29,17.02417751]
[1735173874545,17.78437751,197.36,197.25,20.0]
[1735173874546,0.12549,197.35,197.28,17.02417751]
[1735173875637,12.79339,197.35,197.28,17.02417751]
[1735173875841,0.12549,197.33,197.26,17.02417751]
[1735173877744,20.0,197.31,197.26,17.02417751]
[1735173877947,0.7602,197.3,197.26,17.02417751]
[1735173878349,20.0,197.31,197.26,17.02417751]
[1735173878550,0.7602,197.3,197.26,17.02417751]
[1735173878861,20.0,197.31,197.26,17.02417751]
[1735173880369,0.12549,197.29,197.24,17.02417751]
[1735173880547,17.02417751,197.28,197.19,17.02417751]
[1735173880864,17.02417751,197.26,197.19,17.02417751]
[1735173881044,0.7602,197.25,197.19,17.02417751]
[1735173882465,17.14966751,197.24,197.16,17.02417751]
[1735173882640,17.02417751,197.21,197.14,17.02417751]
[1735173882965,0.7602,197.2,197.14,17.02417751]
[1735173884569,17.14966751,197.19,197.11,17.02417751]
[1735173884735,0.7602,197.18,197.11,17.02417751]
[1735173885074,0.7602,197.18,197.12,17.02417751]
[1735173885558,0.7602,197.18,197.11,17.02417751]
[1735173885738,37.78437751,197.18,197.11,17.02417751]
[1735173887367,37.78437751,197.18,197.1,17.02417751]
[1735173887667,17.02417751,197.16,197.09,17.02417751]
[1735173887848,0.7602,197.15,197.09,17.02417751]
[1735173888164,17.78437751,197.15,197.08,17.02417751]
[1735173888872,17.02417751,197.14,197.07,17.02417751]
[1735173889054,0.7602,197.13,197.07,17.02417751]
[1735173889878,0.12549,197.12,197.02,2.03099169]
[1735173890184,17.02417751,197.11,197.04,17.02417751]
[1735173890358,0.7602,197.1,197.04,17.02417751]
[1735173891051,2.3756,197.1,197.04,17.02417751]
[1735173891250,1.6154,197.1,197.04,17.02417751]
[1735173893753,0.7602,197.11,197.07,17.02417751]
[1735173893953,0.7602,197.11,197.01,47.02417751]
[1735173893954,17.78437751,197.17,197.1,17.02417751]
[1735173894162,0.7602,197.16,197.06,0.76086068]
[1735173894364,0.7602,197.16,197.09,17.02417751]
[1735173894556,0.7602,197.18,197.11,17.02417751]
[1735173895557,17.02417751,197.17,197.09,17.02417751]
[1735173895875,17.78437751,197.16,197.09,17.02417751]
[1735173896671,0.7602,197.16,197.09,17.02417751]
[1735173896984,8.0237,197.19,197.13,17.02417751]
[1735173897478,1.6154,197.19,197.13,17.02417751]
[1735173899643,1.6154,197.19,197.12,17.02417751]
[1735173900175,0.7602,197.18,197.12,17.02417751]
[1735173900377,17.02417751,197.16,197.05,20.76090513]
[1735173900553,17.02417751,197.16,197.08,17.02417751]
[1735173900743,0.12549,197.17,197.1,17.02417751]
[1735173900949,0.88569,197.17,197.1,17.02417751]
[1735173902074,0.7602,197.17,197.1,17.02417751]
[1735173902284,1.6154,197.19,197.12,17.02417751]
[1735173902579,0.7602,197.18,197.12,17.02417751]
[1735173904599,17.02417751,197.16,197.1,17.02417751]
[1735173904768,0.7602,197.15,197.1,17.02417751]
[1735173905100,0.7602,197.15,197.08,17.02417751]
[1735173906892,0.7602,197.15,197.1,17.02417751]
[1735173907068,0.7602,197.18,197.12,17.02417751]
[1735173907267,2.3756,197.19,197.12,17.02417751]
[1735173907477,17.02417751,197.22,197.14,17.02417751]
[1735173907678,17.78437751,197.22,197.14,17.02417751]
[1735173908588,17.78437751,197.22,197.11,0.76077645]
[1735173908764,0.7602,197.22,197.15,17.02417751]
[1735173909984,23.43247751,197.23,197.16,17.02417751]
[1735173910295,0.7602,197.22,197.15,17.02417751]
[1735173910463,0.7602,197.22,197.13,0.76060595]
[1735173910464,17.02417751,197.21,197.14,17.02417751]
[1735173910664,0.7602,197.2,197.13,17.02417751]
[1735173911266,17.02417751,197.17,197.1,17.02417751]
[1735173911492,17.02417751,197.17,197.09,17.02417751]
[1735173911493,0.7602,197.16,197.09,17.02417751]
[1735173911697,17.78437751,197.16,197.09,17.02417751]
[1735173913196,0.7602,197.16,197.09,17.02417751]
[1735173913404,17.78437751,197.18,197.11,17.02417751]
[1735173915110,0.7602,197.18,197.11,17.02417751]
[1735173915273,17.02417751,197.17,197.1,17.02417751]
[1735173915775,0.7602,197.18,197.1,17.02417751]
[1735173915974,0.7602,197.2,197.12,17.02417751]
[1735173916199,17.02417751,197.21,197.14,17.02417751]
[1735173916505,0.7602,197.22,197.14,17.02417751]
[1735173916506,17.78437751,197.22,197.14,17.02417751]
[1735173918295,17.78437751,197.22,197.15,17.02417751]
[1735173918604,17.78437751,197.23,197.15,17.02417751]
[1735173919672,0.7602,197.23,197.17,17.02417751]
[1735173919873,0.7602,197.26,197.22,17.02417751]
[1735173920080,0.7602,197.28,197.24,17.02417751]
[1735173920293,2.3169,197.3,197.25,17.02417751]
[1735173920580,1.5567,197.3,197.26,17.02417751]
[1735173920896,8.0033,197.34,197.27,17.02417751]
[1735173921203,8.0033,197.34,197.22,30.0]
[1735173921204,1.5567,197.34,197.28,17.02417751]
[1735173922176,1.5567,197.34,197.23,0.7602113]
[1735173922177,17.02417751,197.32,197.23,0.7602113]
[1735173922391,17.02417751,197.3,197.23,17.02417751]
[1735173922705,17.02417751,197.32,197.24,17.02417751]
[1735173922902,0.7602,197.31,197.24,17.02417751]
[1735173923101,17.02417751,197.32,197.25,17.02417751]
[1735173923279,0.7602,197.31,197.24,17.02417751]
[1735173923479,17.02417751,197.33,197.25,17.02417751]
[1735173923707,0.7602,197.32,197.25,17.02417751]
[1735173924200,0.7602,197.32,197.27,17.02417751]
[1735173924410,0.7602,197.36,197.29,17.02417751]
[1735173924617,17.02417751,197.38,197.31,17.02417751]
[1735173925416,0.7602,197.37,197.3,17.02417751]
[1735173925712,17.78437751,197.38,197.31,17.02417751]
[1735173925910,0.7602,197.38,197.31,17.02417751]
[1735173926273,25.02747751,197.39,197.32,17.02417751]
[1735173926483,18.58087751,197.39,197.32,17.02417751]
[1735173926894,1.5567,197.39,197.33,17.02417751]
[1735173927093,17.02417751,197.38,197.31,17.02417751]
[1735173927395,17.02417751,197.35,197.24,20.76007524]
[1735173927714,0.7602,197.35,197.29,17.02417751]
[1735173928073,0.7602,197.36,197.29,17.02417751]
[1735173928275,17.78437751,197.38,197.3,17.02417751]
[1735173928587,17.78437751,197.38,197.31,17.02417751]
[1735173929119,0.7602,197.38,197.32,17.02417751]
[1735173929281,0.7602,197.43,197.36,17.02417751]
[1735173929486,8.7635,197.44,197.37,17.02417751]
[1735173930400,1.5567,197.44,197.39,17.02417751]
[1735173930915,1.5567,197.44,197.38,17.02417751]
[1735173931710,2.3169,197.44,197.38,17.02417751]
[1735173931895,19.34107751,197.44,197.37,17.02417751]
[1735173932095,1.5567,197.44,197.39,17.02417751]
[1735173932299,8.0033,197.49,197.42,17.02417751]
[1735173932487,1.5567,197.49,197.43,17.02417751]
[1735173932686,17.14966751,197.52,197.45,17.02417751]
[1735173932890,17.78437751,197.53,197.46,17.02417751]
[1735173933177,0.7602,197.53,197.48,17.02417751]
[1735173933406,1.5567,197.54,197.48,17.02417751]
[1735173933911,17.78437751,197.55,197.48,17.02417751]
[1735173934211,17.02417751,197.52,197.44,17.02417751]
[1735173934394,0.7602,197.51,197.44,17.02417751]
[1735173935817,17.78437751,197.51,197.43,17.02417751]
[1735173936515,1.574,197.58,197.45,17.02417751]
[1735173936516,17.78437751,197.53,197.45,17.02417751]
[1735173936714,0.7602,197.52,197.45,17.02417751]
[1735173937313,17.02417751,197.53,197.45,17.02417751]
[1735173937609,23.776884,197.54,197.47,17.02417751]
[1735173937787,0.7602,197.54,197.47,17.02417751]
[1735173938397,17.78437751,197.54,197.46,17.02417751]
[1735173938595,17.02417751,197.52,197.44,17.02417751]
[1735173938790,17.78437751,197.51,197.43,17.02417751]
[1735173938996,17.78437751,197.51,197.4,17.02417751]
[1735173938997,17.02417751,197.48,197.4,17.02417751]
[1735173939422,40.80106151,197.5,197.43,17.02417751]
[1735173939619,17.02417751,197.52,197.44,17.02417751]
[1735173939786,40.80106151,197.54,197.46,17.02417751]
[1735173939987,17.78437751,197.55,197.47,17.02417751]
[1735173940520,17.02417751,197.54,197.46,17.02417751]
[1735173940719,17.78437751,197.53,197.45,17.02417751]
[1735173940923,17.02417751,197.52,197.44,17.02417751]
[1735173941098,17.02417751,197.54,197.47,17.02417751]
[1735173941606,0.7602,197.53,197.46,17.02417751]
[1735173942032,17.02417751,197.54,197.46,17.02417751]
[1735173942204,23.776884,197.55,197.48,17.02417751]
[1735173942419,41.56126151,197.55,197.47,17.02417751]
[1735173942597,17.02417751,197.53,197.45,17.02417751]
[1735173942918,0.7602,197.52,197.45,17.02417751]
[1735173943130,0.7602,197.54,197.47,17.02417751]
[1735173943929,17.78437751,197.54,197.46,17.02417751]
[1735173944113,17.78437751,197.54,197.42,0.75940475]
[1735173944114,17.02417751,197.52,197.44,17.02417751]
[1735173944430,0.7602,197.51,197.44,17.02417751]
[1735173944636,1.574,197.58,197.44,17.02417751]
[1735173944637,1.6105,197.63,197.51,30.12549]
[1735173944797,1.6105,197.63,197.57,17.02417751]
[1735173947296,17.02417751,197.61,197.47,30.0]
[1735173947492,0.7602,197.6,197.52,17.02417751]
[1735173949403,24.662574,197.61,197.54,17.02417751]
[1735173950133,41.68675151,197.61,197.54,17.02417751]
[1735173952138,24.662574,197.61,197.54,17.02417751]
[1735173952429,24.537084,197.61,197.54,17.02417751]
[1735173953337,1.6105,197.63,197.58,17.02417751]
[1735173953641,0.7602,197.64,197.58,17.02417751]
[1735173953935,0.7602,197.66,197.58,17.02417751]
[1735173956437,23.776884,197.65,197.58,17.02417751]
[1735173956742,0.7602,197.64,197.56,17.02417751]
[1735173956911,40.80106151,197.63,197.56,17.02417751]
[1735173957111,0.7602,197.62,197.56,17.02417751]
[1735173962247,40.92655151,197.61,197.52,17.02417751]
[1735173962444,40.80106151,197.59,197.52,17.02417751]
[1735173962623,0.7602,197.58,197.52,17.02417751]
[1735173963228,23.776884,197.59,197.52,17.02417751]
[1735173963430,23.776884,197.59,197.54,17.02417751]
[1735173963835,2.3405,197.6,197.54,17.02417751]
[1735173964139,12.6485,197.66,197.58,17.02417751]
[1735173964140,1.5659,197.65,197.58,17.02417751]
[1735173964322,1.5659,197.65,197.6,17.02417751]
[1735173964524,0.7602,197.73,197.62,17.02417751]
[1735173964525,1.5659,197.7,197.62,17.02417751]
[1735173964731,1.5659,197.7,197.56,17.02417751]
[1735173964732,1.5659,197.7,197.63,17.02417751]
[1735173965040,17.02417751,197.73,197.67,17.02417751]
[1735173965442,17.02417751,197.73,197.66,17.02417751]
[1735173965811,0.7602,197.72,197.66,17.02417751]
[1735173966626,17.02417751,197.71,197.64,17.02417751]
[1735173966816,0.7602,197.7,197.62,17.02417751]
[1735173967750,40.92655151,197.69,197.62,17.02417751]
[1735173967916,40.80106151,197.67,197.6,17.02417751]
[1735173968118,0.7602,197.66,197.6,17.02417751]
[1735173970418,0.7602,197.68,197.62,17.02417751]
[1735173970619,40.80106151,197.67,197.6,17.02417751]
[1735173970837,0.7602,197.66,197.6,17.02417751]
[1735173971042,2.3261,197.66,197.58,17.02417751]
[1735173971314,17.02417751,197.65,197.58,17.02417751]
[1735173971550,0.7602,197.64,197.58,17.02417751]
[1735173971727,40.80106151,197.63,197.55,17.02417751]
[1735173972441,17.02417751,197.61,197.53,17.02417751]
[1735173972650,40.80106151,197.59,197.51,17.02417751]
[1735173972951,0.7602,197.58,197.51,17.02417751]
[1735173973453,17.78437751,197.62,197.55,17.02417751]
[1735173973751,0.7602,197.61,197.55,17.02417751]
[1735173974132,17.02417751,197.63,197.55,17.02417751]
[1735173974333,0.7602,197.62,197.55,17.02417751]
[1735173975155,17.02417751,197.59,197.53,17.02417751]
[1735173975320,0.7602,197.58,197.51,17.02417751]
[1735173976966,40.80106151,197.57,197.51,17.02417751]
[1735173977122,0.7602,197.56,197.49,17.02417751]
[1735173978548,40.80106151,197.55,197.47,17.02417751]
[1735173978870,17.02417751,197.51,197.45,17.02417751]
[1735173979023,0.7602,197.52,197.45,17.02417751]
[1735173981155,23.776884,197.5,197.43,17.02417751]
[1735173981333,0.7602,197.49,197.43,17.02417751]
[1735173981534,24.537084,197.5,197.43,17.02417751]
[1735173982273,17.02417751,197.49,197.4,0.75953246]
[1735173982429,0.7602,197.48,197.41,17.02417751]
[1735173982633,0.7602,197.49,197.41,17.02417751]
[1735173983248,0.7602,197.49,197.43,17.02417751]
[1735173984753,23.776884,197.48,197.41,17.02417751]
[1735173985057,2.3867,197.47,197.41,17.02417751]
[1735173985555,19.41087751,197.47,197.39,17.02417751]
[1735173985957,17.14966751,197.45,197.37,17.02417751]
[1735173986159,24.537084,197.44,197.37,17.02417751]
[1735173986364,17.02417751,197.43,197.37,17.02417751]
[1735173986677,25.11197751,197.47,197.39,17.02417751]
[1735173987548,0.7602,197.46,197.39,17.02417751]
[1735173987860,23.776884,197.45,197.39,17.02417751]
[1735173988068,0.7602,197.44,197.37,17.02417751]
[1735173988244,40.80106151,197.45,197.37,17.02417751]
[1735173988444,25.11197751,197.47,197.39,17.02417751]
[1735173988674,0.7602,197.46,197.39,17.02417751]
[1735173989597,40.80106151,197.45,197.37,17.02417751]
[1735173989773,0.7602,197.44,197.37,17.02417751]
[1735173990258,40.80106151,197.45,197.39,17.02417751]
[1735173990790,14.2834,197.52,197.39,17.02417751]
[1735173990942,23.776884,197.47,197.39,17.02417751]
[1735173991149,24.537084,197.47,197.39,17.02417751]
[1735173991979,23.776884,197.45,197.39,17.02417751]
[1735173992181,17.78437751,197.44,197.37,17.02417751]
[1735173992382,17.78437751,197.44,197.35,17.02417751]
[1735173993656,17.78437751,197.44,197.37,17.02417751]
[1735173993877,1.6265,197.52,197.41,17.02417751]
[1735173994077,17.02417751,197.5,197.41,17.02417751]
[1735173994258,0.7602,197.49,197.43,17.02417751]
[1735173994982,17.02417751,197.5,197.43,17.02417751]
[1735173995753,0.7602,197.49,197.41,37.02417751]
[1735173996981,17.02417751,197.48,197.41,17.02417751]
[1735173997154,0.7602,197.47,197.41,17.02417751]
[1735173997351,17.02417751,197.48,197.41,17.02417751]
[1735173997556,0.7602,197.47,197.41,17.02417751]
[1735173997964,17.02417751,197.46,197.39,17.02417751]
[1735173998276,17.78437751,197.5,197.41,17.02417751]
[1735174001453,0.12549,197.49,197.41,17.02417751]
[1735174001662,17.02417751,197.48,197.39,17.02417751]
[1735174001857,0.7602,197.47,197.39,17.02417751]
[1735174002061,17.14966751,197.46,197.37,17.02417751]
[1735174002283,17.02417751,197.44,197.37,17.02417751]
[1735174002484,0.7602,197.43,197.37,17.02417751]
[1735174002879,2.4125,197.43,197.37,17.02417751]
[1735174003087,2.4125,197.43,197.34,7.55092386]
[1735174003269,2.4125,197.43,197.36,17.02417751]
[1735174003995,17.02417751,197.42,197.34,17.02417751]
[1735174004165,0.7602,197.41,197.34,17.02417751]
[1735174004556,17.78437751,197.42,197.34,17.02417751]
[1735174004788,17.78437751,197.42,197.36,17.02417751]
[1735174005658,17.78437751,197.42,197.35,17.02417751]
[1735174006487,17.02417751,197.38,197.3,0.75994629]
[1735174006689,17.02417751,197.36,197.28,17.02417751]
[1735174006894,17.78437751,197.35,197.28,17.02417751]
[1735174007059,17.78437751,197.35,197.27,17.02417751]
[1735174007585,17.02417751,197.33,197.26,17.02417751]
[1735174007771,0.7602,197.32,197.25,17.02417751]
[1735174009273,17.02417751,197.31,197.24,17.02417751]
[1735174009477,17.02417751,197.32,197.25,17.02417751]
[1735174009784,0.7602,197.31,197.25,17.02417751]
[1735174010282,17.78437751,197.31,197.24,17.02417751]
[1735174010480,17.02417751,197.3,197.23,17.02417751]
[1735174011285,0.7602,197.33,197.24,17.02417751]
[1735174011286,17.02417751,197.31,197.24,17.02417751]
[1735174011490,0.7602,197.3,197.24,17.02417751]
[1735174013499,1.6523,197.34,197.29,17.02417751]
[1735174013995,1.5619,197.38,197.33,17.02417751]
[1735174014487,1.5619,197.38,197.34,17.02417751]
[1735174015296,6.2195,197.41,197.34,17.02417751]
[1735174015482,6.9797,197.41,197.34,17.02417751]
[1735174016306,0.7602,197.41,197.35,17.02417751]
[1735174016628,1.5619,197.42,197.36,17.02417751]
[1735174018798,17.78437751,197.41,197.34,17.02417751]
[1735174021088,0.7602,197.41,197.34,17.02417751]
[1735174021796,2.3221,197.42,197.34,17.02417751]
[1735174021981,1.5619,197.42,197.36,17.02417751]
[1735174023086,2.3221,197.42,197.36,17.02417751]
[1735174023469,1.5619,197.42,197.36,17.02417751]
[1735174023676,2.3221,197.42,197.36,17.02417751]
[1735174025505,1.5619,197.42,197.36,17.02417751]
[1735174026078,1.5619,197.42,197.32,0.75987846]
[1735174026277,1.5207,197.47,197.41,17.02417751]
[1735174026485,1.5207,197.47,197.43,17.02417751]
[1735174026892,1.5207,197.47,197.42,17.02417751]
[1735174027295,0.7602,197.46,197.39,17.02417751]
[1735174027577,17.78437751,197.46,197.39,17.02417751]
[1735174027780,17.78437751,197.46,197.38,17.02417751]
[1735174028604,0.12549,197.45,197.38,17.02417751]
[1735174028906,17.02417751,197.44,197.37,17.02417751]
[1735174029202,0.12549,197.42,197.35,17.02417751]
[1735174029410,1.5207,197.39,197.32,17.02417751]
[1735174029586,2.2809,197.39,197.32,17.02417751]
[1735174029787,1.5207,197.39,197.36,17.02417751]
[1735174029979,18.54487751,197.44,197.37,17.02417751]
[1735174030180,1.5207,197.44,197.39,17.02417751]
[1735174030583,17.78437751,197.43,197.36,17.02417751]
[1735174031507,23.902374,197.42,197.35,17.02417751]
[1735174031810,0.7602,197.42,197.35,17.02417751]
[1735174031994,17.78437751,197.43,197.35,17.02417751]
[1735174032192,17.78437751,197.43,197.37,17.02417751]
[1735174032709,0.7602,197.43,197.37,17.02417751]
[1735174033591,0.7602,197.43,197.36,17.02417751]
[1735174033795,0.7602,197.43,197.33,20.75988006]
[1735174033796,17.14966751,197.42,197.34,17.02417751]
[1735174033990,0.7602,197.41,197.34,17.02417751]
[1735174035492,17.02417751,197.37,197.3,17.02417751]